fUSD/lending_fUSD_20260602
["ID","MTS","AMOUNT","RATE_DAILY","PERIOD"]
[423730770,1780344638000,-1221.0,0.00013788,2]
[423730768,1780344638000,-500.0,0.00013788,2]
[423730772,1780344638000,-500.0,0.00013788,2]
[423730758,1780344638000,-500.0,0.00013788,2]
[423730744,1780344638000,-1221.0,0.00013788,2]
[423730773,1780344638000,-500.0,0.00013788,2]
[423730743,1780344638000,-500.0,0.00013788,2]
[423730741,1780344638000,-500.0,0.00013788,2]
[423730717,1780344638000,-151.0,0.00013699,2]
[423730721,1780344638000,-150.0,0.00013718,2]
[423730720,1780344638000,-383.43456735,0.00013714,2]
[423730719,1780344638000,-161.212248,0.00013699,2]
[423730718,1780344638000,-151.0,0.00013699,2]
[423730722,1780344638000,-150.0,0.00013718,2]
[423730726,1780344638000,-354.74978975,0.00013776,2]
[423730727,1780344638000,-7728.15270419,0.00013785,2]
[423730725,1780344638000,-150.0,0.00013764,2]
[423730724,1780344638000,-150.0,0.00013741,2]
[423730723,1780344638000,-150.0,0.00013737,2]
[423730730,1780344638000,-150.0,0.00013787,2]
[423730715,1780344638000,-151.0,0.00013699,2]
[423730731,1780344638000,-150.0,0.00013788,2]
[423730740,1780344638000,-500.0,0.00013788,2]
[423730742,1780344638000,-1221.0,0.00013788,2]
[423730739,1780344638000,-1221.0,0.00013788,2]
[423730735,1780344638000,-1221.0,0.00013788,2]
[423730728,1780344638000,-151.0,0.00013785,2]
[423730734,1780344638000,-1221.0,0.00013788,2]
[423730736,1780344638000,-500.0,0.00013788,2]
[423730732,1780344638000,-150.0,0.00013788,2]
[423730771,1780344638000,-500.0,0.00013788,2]
[423730737,1780344638000,-1221.0,0.00013788,2]
[423730738,1780344638000,-500.0,0.00013788,2]
[423730729,1780344638000,-151.0,0.00013785,2]
[423730733,1780344638000,-200.0,0.00013788,2]
[423730812,1780344639000,-500.0,0.00013854,2]
[423730811,1780344639000,-500.0,0.00013854,2]
[423730813,1780344639000,-500.0,0.00013854,2]
[423730810,1780344639000,-500.0,0.00013854,2]
[423730803,1780344639000,-150.0,0.0001381,2]
[423730808,1780344639000,-500.0,0.00013854,2]
[423730809,1780344639000,-500.0,0.00013854,2]
[423730805,1780344639000,-150.0,0.00013834,2]
[423730806,1780344639000,-150.0,0.00013834,2]
[423730807,1780344639000,-166.66,0.00013836,2]
[423730816,1780344639000,-500.0,0.00013854,2]
[423730818,1780344639000,-500.0,0.00013854,2]
[423730817,1780344639000,-150.0,0.00013854,2]
[423730820,1780344639000,-150.0,0.00013854,2]
[423730819,1780344639000,-500.0,0.00013854,2]
[423730814,1780344639000,-500.0,0.00013854,2]
[423730804,1780344639000,-250.0,0.0001382,2]
[423730821,1780344639000,-510.13549876,0.00013854,2]
[423730822,1780344639000,-150.0,0.00013854,2]
[423730824,1780344639000,-500.0,0.00013854,2]
[423730823,1780344639000,-200.0,0.00013854,2]
[423730825,1780344639000,-500.0,0.00013854,2]
[423730828,1780344639000,-500.0,0.00013854,2]
[423730826,1780344639000,-500.0,0.00013854,2]
[423730829,1780344639000,-500.0,0.00013854,2]
[423730815,1780344639000,-500.0,0.00013854,2]
[423730802,1780344639000,-1238.45177235,0.00013788,2]
[423730795,1780344639000,-500.0,0.00013788,2]
[423730800,1780344639000,-179.15137862,0.00013788,2]
[423730830,1780344639000,-150.0,0.00013854,2]
[423730774,1780344639000,-500.0,0.00013788,2]
[423730775,1780344639000,-1221.0,0.00013788,2]
[423730778,1780344639000,-1221.0,0.00013788,2]
[423730777,1780344639000,-537.33389924,0.00013788,2]
[423730776,1780344639000,-500.0,0.00013788,2]
[423730779,1780344639000,-150.0,0.00013788,2]
[423730780,1780344639000,-150.0,0.00013788,2]
[423730781,1780344639000,-150.0,0.00013788,2]
[423730784,1780344639000,-250.0,0.00013788,2]
[423730782,1780344639000,-150.0,0.00013788,2]
[423730783,1780344639000,-150.0,0.00013788,2]
[423730785,1780344639000,-1221.0,0.00013788,2]
[423730786,1780344639000,-150.0,0.00013788,2]
[423730787,1780344639000,-174.37069545,0.00013788,2]
[423730790,1780344639000,-500.0,0.00013788,2]
[423730789,1780344639000,-500.0,0.00013788,2]
[423730791,1780344639000,-500.0,0.00013788,2]
[423730793,1780344639000,-500.0,0.00013788,2]
[423730794,1780344639000,-500.0,0.00013788,2]
[423730796,1780344639000,-500.0,0.00013788,2]
[423730792,1780344639000,-500.0,0.00013788,2]
[423730797,1780344639000,-500.0,0.00013788,2]
[423730801,1780344639000,-1221.0,0.00013788,2]
[423730799,1780344639000,-500.0,0.00013788,2]
[423730798,1780344639000,-1221.0,0.00013788,2]
[423730788,1780344639000,-1221.0,0.00013788,2]
[423730827,1780344639000,-500.0,0.00013854,2]
[423730832,1780344639000,-500.0,0.00013854,2]
[423730868,1780344639000,-250.0,0.00014,2]
[423730866,1780344639000,-151.0,0.0001399,2]
[423730867,1780344639000,-150.0,0.00013995,2]
[423730861,1780344639000,-150.0,0.00013972,2]
[423730863,1780344639000,-150.0,0.00013987,2]
[423730869,1780344639000,-500.0,0.00014,2]
[423730871,1780344639000,-500.0,0.00014,2]
[423730872,1780344639000,-500.0,0.00014,2]
[423730870,1780344639000,-500.0,0.00014,2]
[423730876,1780344639000,-150.0,0.00014018,2]
[423730874,1780344639000,-7728.15270419,0.00014008,2]
[423730877,1780344639000,-1546.0,0.00014024,2]
[423730880,1780344639000,-151.0,0.00014024,2]
[423730873,1780344639000,-526.88,0.00014,2]
[423730875,1780344639000,-151.0,0.00014008,2]
[423730879,1780344639000,-151.0,0.00014024,2]
[423730881,1780344639000,-151.0,0.00014024,2]
[423730883,1780344639000,-153.0,0.00014024,2]
[423730882,1780344639000,-151.0,0.00014024,2]
[423730884,1780344639000,-150.0,0.00014041,2]
[423730886,1780344639000,-150.0,0.0001405,2]
[423730885,1780344639000,-500.0,0.00014047,2]
[423730887,1780344639000,-150.0,0.00014056,2]
[423730888,1780344639000,-150.0,0.00014056,2]
[423730831,1780344639000,-500.0,0.00013854,2]
[423730864,1780344639000,-60000.0,0.0001399,2]
[423730865,1780344639000,-1500.0,0.0001399,2]
[423730878,1780344639000,-1546.0,0.00014024,2]
[423730859,1780344639000,-150.0,0.00013949,2]
[423730833,1780344639000,-150.0,0.00013854,2]
[423730862,1780344639000,-166.66,0.00013973,2]
[423730834,1780344639000,-338.00061309,0.00013854,2]
[423730835,1780344639000,-500.0,0.00013854,2]
[423730836,1780344639000,-150.0,0.00013854,2]
[423730838,1780344639000,-150.0,0.00013854,2]
[423730837,1780344639000,-500.0,0.00013854,2]
[423730839,1780344639000,-500.0,0.00013854,2]
[423730841,1780344639000,-500.0,0.00013854,2]
[423730843,1780344639000,-500.0,0.00013854,2]
[423730842,1780344639000,-250.0,0.00013854,2]
[423730844,1780344639000,-500.0,0.00013854,2]
[423730845,1780344639000,-386.84986946,0.00013854,2]
[423730840,1780344639000,-150.0,0.00013854,2]
[423730860,1780344639000,-150.0,0.00013949,2]
[423730858,1780344639000,-635.545699,0.00013946,2]
[423730846,1780344639000,-500.0,0.00013854,2]
[423730856,1780344639000,-150.0,0.00013903,2]
[423730857,1780344639000,-150.0,0.00013926,2]
[423730852,1780344639000,-150.0,0.00013862,2]
[423730851,1780344639000,-150.0,0.00013857,2]
[423730855,1780344639000,-150.0,0.0001388,2]
[423730850,1780344639000,-534.04255896,0.00013854,2]
[423730849,1780344639000,-193.97666921,0.00013854,2]
[423730848,1780344639000,-500.0,0.00013854,2]
[423730847,1780344639000,-150.0,0.00013854,2]
[423730853,1780344639000,-150.0,0.00013862,2]
[423730925,1780344640000,-150.0,0.00014362,2]
[423730930,1780344640000,-500.94201781,0.00014399,2]
[423730928,1780344640000,-166.66,0.00014384,2]
[423730926,1780344640000,-150.0,0.00014364,2]
[423730927,1780344640000,-298.5232093,0.00014375,2]
[423730919,1780344640000,-150.0,0.00014295,2]
[423730921,1780344640000,-255.6230449,0.0001432,2]
[423730923,1780344640000,-500.0,0.00014343,2]
[423730922,1780344640000,-150.0,0.00014341,2]
[423730920,1780344640000,-150.0,0.00014318,2]
[423730931,1780344640000,-150.0,0.0001441,2]
[423730924,1780344640000,-169.38,0.00014355,2]
[423730929,1780344640000,-150.0,0.00014387,2]
[423730943,1780344640000,-150.0,0.00014487,2]
[423730933,1780344640000,-215.65015035,0.00014424,2]
[423730934,1780344640000,-150.0,0.00014424,2]
[423730938,1780344640000,-500.0,0.00014452,2]
[423730935,1780344640000,-150.0,0.00014433,2]
[423730936,1780344640000,-500.0,0.00014452,2]
[423730940,1780344640000,-150.0,0.00014456,2]
[423730937,1780344640000,-500.0,0.00014452,2]
[423730939,1780344640000,-7728.15270419,0.00014454,2]
[423730941,1780344640000,-150.0,0.00014479,2]
[423730944,1780344640000,-150.0,0.00014502,2]
[423730942,1780344640000,-161.12814006,0.00014482,2]
[423730918,1780344640000,-150.0,0.00014295,2]
[423730932,1780344640000,-150.0,0.0001441,2]
[423730917,1780344640000,-150.0,0.00014272,2]
[423730890,1780344640000,-500.0,0.0001406,2]
[423730916,1780344640000,-150.0,0.00014249,2]
[423730945,1780344640000,-3623.42,0.00014504,2]
[423730889,1780344640000,-244.86363879,0.00014056,2]
[423730891,1780344640000,-150.0,0.00014064,2]
[423730892,1780344640000,-150.0,0.00014064,2]
[423730893,1780344640000,-150.0,0.00014087,2]
[423730895,1780344640000,-150.0,0.0001411,2]
[423730894,1780344640000,-166.66,0.0001411,2]
[423730896,1780344640000,-150.0,0.00014112,2]
[423730897,1780344640000,-150.0,0.00014133,2]
[423730899,1780344640000,-192.7,0.00014158,2]
[423730898,1780344640000,-150.0,0.00014156,2]
[423730903,1780344640000,-394.152303,0.00014165,2]
[423730915,1780344640000,-166.66,0.00014247,2]
[423730901,1780344640000,-515.107445,0.00014165,2]
[423730902,1780344640000,-170.374164,0.00014165,2]
[423730904,1780344640000,-500.0,0.00014178,2]
[423730907,1780344640000,-150.0,0.00014179,2]
[423730905,1780344640000,-500.0,0.00014178,2]
[423730906,1780344640000,-835.188,0.00014178,2]
[423730908,1780344640000,-150.0,0.00014179,2]
[423730910,1780344640000,-150.0,0.00014225,2]
[423730913,1780344640000,-150.0,0.00014237,2]
[423730911,1780344640000,-383.43456735,0.00014228,2]
[423730909,1780344640000,-150.0,0.00014202,2]
[423730914,1780344640000,-150.0,0.00014237,2]
[423730912,1780344640000,-7728.15270419,0.00014231,2]
[423730900,1780344640000,-500.0,0.00014164,2]
[423730949,1780344640000,-150.0,0.00014525,2]
[423730995,1780344640000,-150.0,0.00014737,2]
[423730947,1780344640000,-255.0,0.00014511,2]
[423730980,1780344640000,-151.0,0.00014697,2]
[423730982,1780344640000,-33240.6068,0.00014699,2]
[423730984,1780344640000,-151.0,0.00014699,2]
[423730985,1780344640000,-29573.14571807,0.000147,2]
[423730983,1780344640000,-7904.46317071,0.00014699,2]
[423730986,1780344640000,-2000.0,0.00014702,2]
[423730981,1780344640000,-500.0,0.00014698,2]
[423730987,1780344640000,-3639.0,0.00014704,2]
[423730990,1780344640000,-500.0,0.00014712,2]
[423730988,1780344640000,-6068.0,0.00014704,2]
[423730989,1780344640000,-150.0,0.0001471,2]
[423731004,1780344640000,-2500.0,0.00014779,2]
[423730978,1780344640000,-150.0,0.00014687,2]
[423730996,1780344640000,-7904.46317064,0.00014744,2]
[423730992,1780344640000,-1680.0,0.00014722,2]
[423730997,1780344640000,-150.0,0.00014756,2]
[423730994,1780344640000,-150.0,0.00014733,2]
[423730998,1780344640000,-150.0,0.00014756,2]
[423731000,1780344640000,-388.0,0.00014759,2]
[423730999,1780344640000,-391.0,0.00014759,2]
[423731002,1780344640000,-7904.46317064,0.00014766,2]
[423731001,1780344640000,-10000.0,0.00014762,2]
[423731003,1780344640000,-391.0,0.00014768,2]
[423731005,1780344640000,-2500.0,0.00014779,2]
[423731006,1780344640000,-2500.0,0.00014779,2]
[423730948,1780344640000,-150.0,0.00014525,2]
[423730993,1780344640000,-351.0,0.00014729,2]
[423730979,1780344640000,-151.0,0.00014697,2]
[423730991,1780344640000,-7904.46317064,0.00014721,2]
[423730974,1780344640000,-151.0,0.00014656,2]
[423730950,1780344640000,-151.0,0.00014544,2]
[423730977,1780344640000,-7728.15270419,0.00014677,2]
[423730951,1780344640000,-151.0,0.00014544,2]
[423730946,1780344640000,-16963.48,0.00014504,2]
[423730952,1780344640000,-153.0,0.00014544,2]
[423730955,1780344640000,-165.22995503,0.00014555,2]
[423730953,1780344640000,-150.0,0.00014548,2]
[423730956,1780344640000,-150.0,0.00014571,2]
[423730958,1780344640000,-150.0,0.00014594,2]
[423730963,1780344640000,-150.0,0.00014612,2]
[423730960,1780344640000,-172.47512054,0.00014599,2]
[423730959,1780344640000,-820.17,0.00014599,2]
[423730961,1780344640000,-2212.70631851,0.00014599,2]
[423730957,1780344640000,-350.0,0.00014576,2]
[423730964,1780344640000,-150.0,0.00014617,2]
[423730970,1780344640000,-150.0,0.0001464,2]
[423730962,1780344640000,-150.0,0.00014612,2]
[423730973,1780344640000,-151.0,0.00014656,2]
[423730972,1780344640000,-1386.4187975,0.00014644,2]
[423730976,1780344640000,-420.0,0.00014672,2]
[423730975,1780344640000,-150.0,0.00014664,2]
[423730971,1780344640000,-150.0,0.0001464,2]
[423730968,1780344640000,-2794.0337577,0.00014635,2]
[423730967,1780344640000,-2000.0,0.00014632,2]
[423730966,1780344640000,-1647.6641682,0.00014632,2]
[423730965,1780344640000,-2793.5504,0.00014621,2]
[423730969,1780344640000,-350.0,0.00014637,2]
[423731047,1780344641000,-500.0,0.00014799,2]
[423731048,1780344641000,-500.0,0.00014799,2]
[423731046,1780344641000,-500.0,0.00014799,2]
[423731041,1780344641000,-501.96,0.00014799,2]
[423731045,1780344641000,-2112.71,0.00014799,2]
[423731044,1780344641000,-2112.71,0.00014799,2]
[423731042,1780344641000,-500.0,0.00014799,2]
[423731039,1780344641000,-501.96,0.00014799,2]
[423731038,1780344641000,-529.57,0.00014799,2]
[423731040,1780344641000,-501.96,0.00014799,2]
[423731049,1780344641000,-500.0,0.00014799,2]
[423731043,1780344641000,-2112.71,0.00014799,2]
[423731051,1780344641000,-907.38,0.00014799,2]
[423731064,1780344641000,-151.0,0.00014814,2]
[423731054,1780344641000,-500.0,0.00014799,2]
[423731052,1780344641000,-907.38,0.00014799,2]
[423731053,1780344641000,-907.38,0.00014799,2]
[423731055,1780344641000,-500.0,0.00014799,2]
[423731057,1780344641000,-500.0,0.00014799,2]
[423731056,1780344641000,-500.0,0.00014799,2]
[423731060,1780344641000,-509.78543593,0.00014799,2]
[423731058,1780344641000,-500.0,0.00014799,2]
[423731059,1780344641000,-500.0,0.00014799,2]
[423731061,1780344641000,-150.0,0.00014802,2]
[423731063,1780344641000,-7904.46317064,0.00014811,2]
[423731037,1780344641000,-529.57,0.00014799,2]
[423731050,1780344641000,-500.0,0.00014799,2]
[423731036,1780344641000,-529.57,0.00014799,2]
[423731007,1780344641000,-2500.0,0.00014779,2]
[423731035,1780344641000,-500.0,0.00014799,2]
[423731065,1780344641000,-500.0,0.00014815,2]
[423731008,1780344641000,-2500.0,0.00014779,2]
[423731009,1780344641000,-300.0,0.00014779,2]
[423731010,1780344641000,-300.0,0.00014779,2]
[423731013,1780344641000,-300.0,0.00014779,2]
[423731011,1780344641000,-300.0,0.00014779,2]
[423731012,1780344641000,-300.0,0.00014779,2]
[423731014,1780344641000,-200.0,0.00014779,2]
[423731019,1780344641000,-150.0,0.00014779,2]
[423731016,1780344641000,-200.0,0.00014779,2]
[423731017,1780344641000,-200.0,0.00014779,2]
[423731018,1780344641000,-200.0,0.00014779,2]
[423731033,1780344641000,-475.61764834,0.00014799,2]
[423731020,1780344641000,-7904.46317064,0.00014788,2]
[423731022,1780344641000,-151.0,0.00014796,2]
[423731024,1780344641000,-552.911354,0.00014798,2]
[423731023,1780344641000,-151.0,0.00014797,2]
[423731025,1780344641000,-552.911354,0.00014798,2]
[423731027,1780344641000,-552.911354,0.00014798,2]
[423731031,1780344641000,-500.0,0.00014799,2]
[423731028,1780344641000,-150.0,0.00014799,2]
[423731030,1780344641000,-500.0,0.00014799,2]
[423731029,1780344641000,-500.0,0.00014799,2]
[423731026,1780344641000,-552.911354,0.00014798,2]
[423731032,1780344641000,-631.64150049,0.00014799,2]
[423731034,1780344641000,-500.0,0.00014799,2]
[423731021,1780344641000,-391.0,0.00014791,2]
[423731062,1780344641000,-391.0,0.00014807,2]
[423731015,1780344641000,-200.0,0.00014779,2]
[423731067,1780344641000,-500.0,0.00014815,2]
[423731100,1780344641000,-25000.0,0.00014847,3]
[423731104,1780344641000,-2000.0,0.0001485,2]
[423731102,1780344641000,-2000.0,0.0001485,2]
[423731105,1780344641000,-500.0,0.00014853,2]
[423731098,1780344641000,-500.0,0.00014843,2]
[423731101,1780344641000,-150.0,0.00014848,2]
[423731103,1780344641000,-2000.0,0.0001485,2]
[423731108,1780344641000,-7904.46317064,0.00014855,2]
[423731106,1780344641000,-411.0,0.00014854,2]
[423731109,1780344641000,-25000.0,0.00014856,3]
[423731107,1780344641000,-175.541488,0.00014855,2]
[423731110,1780344641000,-151.0,0.00014856,2]
[423731099,1780344641000,-391.0,0.00014844,2]
[423731116,1780344641000,-150.0,0.00014861,2]
[423731113,1780344641000,-375.0,0.00014859,2]
[423731114,1780344641000,-391.0,0.0001486,2]
[423731115,1780344641000,-401.0,0.00014861,2]
[423731112,1780344641000,-381.0,0.00014857,2]
[423731117,1780344641000,-151.0,0.00014864,2]
[423731118,1780344641000,-25000.0,0.00014865,3]
[423731121,1780344641000,-552.911354,0.00014865,2]
[423731120,1780344641000,-552.911354,0.00014865,2]
[423731122,1780344641000,-552.911354,0.00014865,2]
[423731123,1780344641000,-552.911354,0.00014865,2]
[423731124,1780344641000,-391.0,0.0001487,2]
[423731066,1780344641000,-500.0,0.00014815,2]
[423731111,1780344641000,-900.0,0.00014857,2]
[423731097,1780344641000,-500.0,0.00014843,2]
[423731119,1780344641000,-151.0,0.00014865,2]
[423731095,1780344641000,-500.0,0.00014843,2]
[423731094,1780344641000,-165.3306902,0.00014843,2]
[423731070,1780344641000,-350.0,0.00014824,2]
[423731069,1780344641000,-500.0,0.00014823,2]
[423731072,1780344641000,-2621.994,0.00014826,2]
[423731074,1780344641000,-151.0,0.00014828,2]
[423731068,1780344641000,-500.0,0.00014815,2]
[423731073,1780344641000,-186.424,0.00014826,2]
[423731075,1780344641000,-151.0,0.00014828,2]
[423731077,1780344641000,-500.0,0.00014832,2]
[423731079,1780344641000,-151.0,0.00014834,2]
[423731078,1780344641000,-7904.46317064,0.00014833,2]
[423731080,1780344641000,-411.0,0.00014837,2]
[423731076,1780344641000,-151.0,0.00014828,2]
[423731071,1780344641000,-150.0,0.00014825,2]
[423731082,1780344641000,-917.54,0.00014843,2]
[423731081,1780344641000,-391.0,0.00014843,2]
[423731093,1780344641000,-500.0,0.00014843,2]
[423731092,1780344641000,-500.0,0.00014843,2]
[423731086,1780344641000,-552.911354,0.00014843,2]
[423731089,1780344641000,-552.911354,0.00014843,2]
[423731091,1780344641000,-616.82,0.00014843,2]
[423731087,1780344641000,-552.911354,0.00014843,2]
[423731088,1780344641000,-552.911354,0.00014843,2]
[423731085,1780344641000,-500.0,0.00014843,2]
[423731084,1780344641000,-500.0,0.00014843,2]
[423731083,1780344641000,-626.47,0.00014843,2]
[423731090,1780344641000,-500.0,0.00014843,2]
[423731096,1780344641000,-500.0,0.00014843,2]
[423731147,1780344642000,-151.0,0.00014882,2]
[423731158,1780344642000,-552.911354,0.0001489,2]
[423731149,1780344642000,-25000.0,0.00014882,3]
[423731154,1780344642000,-484.95949939,0.0001489,2]
[423731151,1780344642000,-15980.86128714,0.00014887,2]
[423731152,1780344642000,-2365.0,0.00014888,5]
[423731155,1780344642000,-907.38,0.0001489,2]
[423731157,1780344642000,-552.911354,0.0001489,2]
[423731156,1780344642000,-552.911354,0.0001489,2]
[423731164,1780344642000,-25000.0,0.00014891,3]
[423731161,1780344642000,-151.0,0.00014891,2]
[423731159,1780344642000,-552.911354,0.0001489,2]
[423731162,1780344642000,-151.0,0.00014891,2]
[423731165,1780344642000,-25000.0,0.00014891,3]
[423731163,1780344642000,-25000.0,0.00014891,3]
[423731166,1780344642000,-500.0,0.00014891,2]
[423731168,1780344642000,-2000.0,0.00014892,2]
[423731167,1780344642000,-2000.0,0.00014892,2]
[423731150,1780344642000,-391.0,0.00014885,2]
[423731160,1780344642000,-240.984577,0.00014891,2]
[423731153,1780344642000,-151.0,0.00014888,2]
[423731133,1780344642000,-500.0,0.00014875,2]
[423731146,1780344642000,-239.865368,0.00014882,2]
[423731170,1780344642000,-1975.0,0.00014893,2]
[423731125,1780344642000,-150.0,0.00014871,2]
[423731127,1780344642000,-25000.0,0.00014874,3]
[423731129,1780344642000,-394.0,0.00014875,2]
[423731126,1780344642000,-150.0,0.00014871,2]
[423731128,1780344642000,-15980.86128714,0.00014874,2]
[423731132,1780344642000,-500.0,0.00014875,2]
[423731130,1780344642000,-377.06035753,0.00014875,2]
[423731131,1780344642000,-327.92067223,0.00014875,2]
[423731134,1780344642000,-200.0,0.00014876,2]
[423731135,1780344642000,-151.0,0.00014876,2]
[423731140,1780344642000,-200.0,0.00014878,2]
[423731138,1780344642000,-500.0,0.00014877,2]
[423731141,1780344642000,-200.0,0.00014878,2]
[423731139,1780344642000,-7904.46317064,0.00014878,2]
[423731137,1780344642000,-200.0,0.00014877,2]
[423731136,1780344642000,-350.0,0.00014876,2]
[423731142,1780344642000,-200.0,0.00014879,2]
[423731144,1780344642000,-163.0,0.0001488,2]
[423731143,1780344642000,-200.0,0.00014879,2]
[423731145,1780344642000,-163.0,0.0001488,2]
[423731148,1780344642000,-25000.0,0.00014882,3]
[423731173,1780344642000,-476.53542119,0.00014894,2]
[423731169,1780344642000,-1099.99,0.00014892,2]
[423731171,1780344642000,-150.0,0.00014893,2]
[423731193,1780344642000,-501.96,0.00014899,2]
[423731197,1780344642000,-500.0,0.00014899,2]
[423731202,1780344642000,-500.0,0.00014899,2]
[423731204,1780344642000,-207.19116941,0.000149,2]
[423731206,1780344642000,-25000.0,0.000149,3]
[423731205,1780344642000,-402.30806969,0.000149,2]
[423731208,1780344642000,-14981.95620103,0.000149,3]
[423731211,1780344642000,-7904.46317064,0.000149,2]
[423731209,1780344642000,-476.53542115,0.000149,2]
[423731207,1780344642000,-25000.0,0.000149,3]
[423731212,1780344642000,-15980.86128714,0.000149,2]
[423731210,1780344642000,-25000.0,0.000149,3]
[423731213,1780344642000,-732.07964105,0.000149,2]
[423731214,1780344642000,-25000.0,0.000149,3]
[423731217,1780344642000,-207.19116941,0.000149,2]
[423731218,1780344642000,-402.30806969,0.000149,2]
[423731216,1780344642000,-3535.78832596,0.000149,2]
[423731220,1780344642000,-367.6435697,0.0001491,2]
[423731219,1780344642000,-387.0,0.0001491,2]
[423731221,1780344642000,-623.4331998,0.00014911,2]
[423731174,1780344642000,-552.911354,0.00014894,2]
[423731199,1780344642000,-500.0,0.00014899,2]
[423731201,1780344642000,-207.19116943,0.00014899,2]
[423731215,1780344642000,-7728.15270419,0.000149,2]
[423731195,1780344642000,-500.0,0.00014899,2]
[423731172,1780344642000,-5000.0,0.00014894,2]
[423731196,1780344642000,-500.0,0.00014899,2]
[423731176,1780344642000,-552.911354,0.00014894,2]
[423731175,1780344642000,-552.911354,0.00014894,2]
[423731177,1780344642000,-552.911356,0.00014894,2]
[423731180,1780344642000,-391.0,0.00014895,2]
[423731179,1780344642000,-150.0,0.00014894,2]
[423731181,1780344642000,-476.53542115,0.00014895,2]
[423731182,1780344642000,-476.53542115,0.00014896,2]
[423731183,1780344642000,-2207.0,0.00014897,5]
[423731178,1780344642000,-732.07964106,0.00014894,2]
[423731185,1780344642000,-476.53542115,0.00014897,2]
[423731184,1780344642000,-151.0,0.00014897,2]
[423731187,1780344642000,-3535.78832596,0.00014897,2]
[423731188,1780344642000,-476.53542115,0.00014898,2]
[423731189,1780344642000,-10000.0,0.00014899,2]
[423731190,1780344642000,-500.0,0.00014899,2]
[423731192,1780344642000,-476.53542115,0.00014899,2]
[423731191,1780344642000,-529.57,0.00014899,2]
[423731186,1780344642000,-732.07964105,0.00014897,2]
[423731203,1780344642000,-402.3080697,0.00014899,2]
[423731194,1780344642000,-2112.71,0.00014899,2]
[423731268,1780344643000,-313.96578204,0.0001499,2]
[423731266,1780344643000,-273.83936132,0.00014986,2]
[423731263,1780344643000,-150.0,0.00014986,2]
[423731265,1780344643000,-278.69604194,0.00014986,2]
[423731262,1780344643000,-150.0,0.00014986,2]
[423731261,1780344643000,-150.0,0.00014986,2]
[423731264,1780344643000,-296.54389221,0.00014986,2]
[423731258,1780344643000,-500.0,0.0001497,2]
[423731259,1780344643000,-697.72821415,0.0001497,2]
[423731255,1780344643000,-500.0,0.0001497,2]
[423731267,1780344643000,-313.96578204,0.0001499,2]
[423731257,1780344643000,-500.0,0.0001497,2]
[423731260,1780344643000,-224.71392698,0.00014986,2]
[423731269,1780344643000,-151.0,0.00014991,2]
[423731275,1780344643000,-907.38,0.00014993,2]
[423731271,1780344643000,-500.0,0.00014993,2]
[423731273,1780344643000,-501.96,0.00014993,2]
[423731274,1780344643000,-2112.71,0.00014993,2]
[423731272,1780344643000,-529.57,0.00014993,2]
[423731277,1780344643000,-907.38,0.00014993,2]
[423731276,1780344643000,-907.38,0.00014993,2]